{"text_format":"1","workbook":"xlsx","n_sheets":6,"sheets":["児童館事業年間活動報告書10-1雛型","児童館事業年間活動報告書10-２雛型","児童館事業年間活動報告書10-３雛型","児童館事業年間活動報告書10-４雛型","児童館事業年間活動報告書10-５雛型","ファイル一覧"],"not_rendered":{"charts":0,"images":0,"macros":1,"external_links":0,"defined_names":5,"comments":0,"pivot_tables":0},"unopened":[],"bounds":{"document_bytes":16777216,"sheet_cells":100000,"rows_first":2000,"rows_last":500,"rows_between":2000,"halvings":0,"cell_chars":16384,"cell_head_chars":4096},"cells_cut":0,"cells_raw":0,"read":"whole","date_system":"1900"}

{"sheet":"児童館事業年間活動報告書10-1雛型","index":0,"n_rows":54,"n_cols":17,"rows_kept":54,"cut":false,"hidden":false,"merged":[[48,13,49,13],[48,14,49,14],[46,2,47,2],[46,3,47,3],[46,4,47,4],[46,5,47,5],[46,6,47,6],[46,7,47,7],[46,8,47,8],[46,9,47,9],[48,7,49,7],[48,10,49,10],[48,11,49,11],[48,12,49,12],[33,13,34,13],[33,10,34,10],[46,13,47,13],[33,14,34,14],[33,11,34,11],[46,14,47,14],[46,10,47,10],[46,11,47,11],[33,12,34,12],[46,12,47,12],[33,5,34,5],[48,3,49,3],[48,4,49,4],[48,5,49,5],[48,6,49,6],[33,4,34,4],[33,6,34,6],[5,0,49,0],[5,1,34,1],[48,1,49,2],[33,2,34,2],[33,3,34,3],[35,1,47,1],[33,8,34,8],[33,7,34,7],[48,9,49,9],[33,9,34,9],[48,8,49,8],[3,11,3,13],[2,4,2,14],[2,0,4,1],[3,4,4,4],[3,9,4,9],[3,10,4,10],[3,14,4,14],[3,7,3,8],[3,5,3,6]]}
[null,null,null,null,null,null,null,null,null,null,null,null,null,null,null,null,"＜様式１０－１＞"]
[null,null,null,"2025(R7) 年度　　　　　　児　童　館　事　業　年　間　活　動　報　告　書　　　 　　 　　（　春日野　）児　童　館",null,null,null,null,null,null,null,null,null,null,null,null,"春日野児童館"]
[null,null,null,null,"参　　　　加　　　　人　　　　数"]
[null,null,"活動名","実施回数","乳幼児","小１～３年",null,"小４～６年",null,"中高生","大人","ボランティア",null,null,"合計","内　　　　　　　　　　　　　　　容","成　果　と　課　題"]
[null,null,null,null,null,"自由来館","学童クラブ","自由来館","学童クラブ",null,null,"中高生","大学生","大人"]
["　　　　子　　ど　　も　　育　　成　　機　　能","基　　　　本　　　　活　　　　動","おりがみクラブ",18,0,0,93,0,13,0,0,0,0,0,{"$f":"SUM(E6:N6)","v":106},"【偶数月に月2～4回】\n「ハロウィンかざり」や「サンタさん」など季節のおりがみを作った。","小学校終了後、登録した子どもたちは集中しておりがみで作品を作った。\n上級生が1年生を見てくれたり、子どもたち同士で教えあう姿がみられた。"]
[null,null,"ゲームクラブ",25,0,18,319,5,77,0,0,0,0,0,{"$f":"SUM(E7:N7)","v":419},"【奇数月に月4回】\n「風船バレー」や「かるた」、「豆つかみ」など簡単にできるゲームを行った。","簡単にできるゲームを取り入れたことで、子どもたちは、楽しんで参加していた。来年度も遊びの拡充として実施していく。"]
[null,null,"中高生卓球day",49,0,0,0,0,0,2,0,0,0,0,{"$f":"SUM(E8:N8)","v":2},"【毎週土曜日(17:00～18:30)】","今年度は、あまり参加者がなかった。"]
[null,null,"小学生卓球クラブ",33,0,13,251,3,112,0,0,2,0,0,381,"【毎月3回】\n１年生の部、２年生の部と、３年生以上の部に分かれて行う。職員がラケットの持ち方、打ち方の基本などを指導し、ラリーができるように指導する。","それぞれの学年で行ったことで年間を通じて徐々に上達した。短時間にはなるが、少人数で行う方が子どもたちの集中も続いたので来年度もそのように行う。"]
[null,null,"五色百人一首",12,0,0,66,0,0,0,0,0,0,7,73,"【毎月1回】\n平日に地域の方に読み手をしていただき、五色百人一首に取り組む。後半は、対戦形式にして実施した。","年間を通じて、札を覚えることができた。地域の方に読み手をしてもらって対戦形式にしたことで、子どもたちの普段の遊びにも浸透した。"]
[null,null,"防災避難訓練",10,0,11,370,5,89,0,0,0,0,0,475,"【毎月1回】\n火災、地震、不審者、水害などの設定を行い、職員と子どもたち全員で、訓練を行う。10月には、防犯ボランティアのロックモンキーズに来て楽しく防犯について学んだり、11月には、かすがのミニ防災デーとして山ノ下消防署や消防分断と連携して救命救急法について学ぶ機会を作った。\n　※「かすがのミニ防災デー」は別枠で行事として入れている","毎月１回の訓練を通じて、災害が起こった場合どのように行動するのか、職員間と子どもたちとで確認しあうことができた。職員もいつ始まるか分からないタイミングで訓練を行ったことで、課題などを共有することができた。"]
[null,null,"きりえクラブ",12,0,6,35,0,0,0,0,0,0,0,41,"【毎月1回】\n小学３年生以上を対象に実施。10級から順に作品を仕上げレベルアップしていく。","初めてカッターを持った子も、徐々に上達していき、自分のしたい作品を仕上げることができていた。季節にちなんだイラストを取り入れ、玄関に展示することで、子どもたちの意欲に繋がり、下級生などにもクラブをPRすることができた。土曜日に他の習い事をしている子は休みがちで上達が遅かった。"]
[null,null,"地域活動",12,1,18,84,2,2,0,0,0,0,0,107,"【毎月1回】\n児童館前のや隣の公園のゴミ拾いをしたり草抜きを子どもたちと一緒に行った。","毎月地域の方が公園の清掃活動をしてくださっていることを子どもたちに伝え、土曜日の子どもたちと一緒に草抜きや、清掃を行った。いつも遊んでいる公園をきれいにすることで、地域住民の方たちに見守られていることなどを実感できた様子で意欲的に行えた。"]
[null,null,"交通安全教室",1,0,1,42,0,13,0,0,0,0,0,56,"【年1回】\n４月に交通安全について山科警察署の方に来ていただき安全な道路の歩き方など、映像を使ってわかりやすくお話してもらった。","2クラスに分かれて同時進行で行った。クラス毎に行う事で、子どもたちも話に集中することができた。映像を使うことでわかりやすい内容でよかった。また、集団帰りが慣れて来たころに交通安全についての話が聞けてよかった。"]
[null,null,"防犯避難訓練",1,0,2,46,1,11,0,0,0,0,0,60]
[null,null,"こどもマーケット",4,0,2,186,2,35,0,0,0,0,0,225,"【年4回】\n100円の金券を持って駄菓子をお買い物する。","普段とは違う駄菓子を金券でお買い物をすることで子どもたちは社会体験ができ、自分で選ぶ喜びを体験できた。今年度は自由来館児童の参加が少なかった。"]
[null,null,"かすがのオニム大会",2,0,1,34,1,6,0,0,0,0,0,42,"【年2回】\n児童館で人気の遊び「オニム」の館内大会を行った。「1年生の部」、初心者を対象とした「チャレンジャーズカップ」、主に上級者を対象とした「マスターズカップ」の3部門に分けて行った。","大会を3部門に分けて行ったことで、初心者の子も参加しやすい大会となった。また、長期休業中の平日に行ったことで土曜日出席しない児童も参加できた。"]
[null,null,"かすがのマンカラ大会",1,0,2,14,1,0,0,0,0,0,0,17,"【年1回】\n夏休みに「マンカラ」の館内大会を行った。トーナメント方式でを実施。","学年に関係なく遊ぶことができるので日常の遊びの中でも取り組む姿が見られ、楽しみながら力をつける様子がみられた。"]
[null,null,"けん玉検定",8,0,1,331,0,76,0,0,0,0,0,408,"【年2回(8月・11月)】\n年2回、４日程度期間を設けて実施。個人カードに基づいて室で検定を行った。","年2回実施することで1年を通じて子どもたちの意欲へとつながった。日常の遊びの中でも取り組む姿が見られ、楽しみながら力をつける様子がみられた。"]
[null,null,"モシカメ記録会",8,0,0,247,0,70,0,0,0,0,0,317,"【年2回(8月・12月)】\n年2回、４日程度期間を設けて実施。個人カードに基づいて記録会を行った。","年2回実施することで1年を通じて子どもたちの意欲へとつながった。日常の遊びの中でも取り組む姿が見られ、楽しみながら力をつける様子がみられた。"]
[null,null,"夏のお楽しみ会",1,9,27,11,16,0,0,11,0,0,10,84,"【年1回】\n夏休み明け9月第1土曜日に実施。3年生以上の子どもたちがスタッフになり,おたからつり、まとあてなどの遊びを行った。","今年度も夏のお楽しみ会を9月の第一土曜日に実施した。保護者地域のボランティアのお手伝いもあり、盛大にコーナー遊びを展開することができた。"]
[null,null,"京都やんちゃフェスタ2025",1,0,0,12,0,0,0,0,0,0,0,12,"【年1回】\n10月25日、梅小路公園で行われたに京都やんちゃフェスタに参加。","子どもたちを引率し、各コーナーを子どもたちがグループで回り遊びを楽しんだ。"]
[null,null,"ハロウィンおたのしみデー",1,0,1,49,1,12,0,0,0,0,0,63,"【年1回】\n10月31日、図書室でおたからつりを行った。","平日だったが、学童クラブの子どもたちを中心にハロウィンの雰囲気の中、おたからつりを楽しんだ。"]
[null,null,"かすがのミニ防災デー",1,6,37,14,13,1,1,21,0,0,3,96,"【年1回】\n11月15日、山ノ下消防署の方にきていただき、救命救急法について学んだ。午後からは、露店が出てお祭りのように楽しんだ。","当日は多くの参加があった。民生委員さんやまなび教室の方にも協力していただき、。地域を巻き込んで防災について考える一日となった。"]
[null,null,"クリスマスビンゴ大会",1,0,0,47,1,11,0,0,0,0,0,59,"【年1回】\n学童クラブ児童と自由来館児童と合同でクリスマスビンゴ大会を行った。冬やクリスマスをテーマにビンゴを行った。景品に鉛筆とノートを用意した。","各クラス分かれて行った。短時間で楽しいクリスマスの雰囲気をみんなで味わうことができた。"]
[null,null,"大そうじ",1,0,6,8,0,0,0,0,0,0,0,14,"【年1回】\n年末に、１年間使った児童館をみんなで掃除する。","各グループに分かれて、各々の持ち場に取組み、意欲的、主体的に行うことができていた。"]
[null,null,"百人一首大会",1,0,0,5,0,0,0,0,0,0,1,6,"【毎月1回】\n民生児童委員の方が読み手となり、五色百人一首大会を行った。","平日に参加希望をとり、児童で対戦し民生児童委員の方が読み手をしてくださったので、より大会らしい雰囲気となった。"]
[null,null,null,null,0,0,null,null,0,0,0,0,0,null,0]
[null,null,null,null,null,null,null,null,null,null,null,null,null,null,0]
[null,null,null,null,null,null,null,null,null,null,null,null,null,null,0]
[null,null,null,null,null,null,null,null,null,null,null,null,null,null,0]
[null,null,null,null,null,null,null,null,null,null,null,null,null,null,0]
[null,null,null,null,null,null,null,null,null,null,null,null,null,null,{"$f":"SUM(E33:N33)","v":0}]
[null,null,"合　　　　計",{"$f":"SUM(D6:D33)","v":203},{"$f":"SUM(E6:E33)","v":16},{"$f":"SUM(F6:F33)","v":146},2264,51,528,3,32,2,{"$f":"SUM(M6:M33)","v":0},{"$f":"SUM(N6:N33)","v":21},{"$f":"SUM(O6:O33)","v":3063}]
[]
[null,"推　進　活　動",null,null,null,null,null,null,null,null,null,null,null,null,{"$f":"SUM(D36:N36)","v":0}]
[null,null,null,null,null,null,null,null,null,null,null,null,null,null,{"$f":"SUM(E37:N37)","v":0}]
[null,null,null,null,null,null,null,null,null,null,null,null,null,null,{"$f":"SUM(E38:N38)","v":0}]
[null,null,null,null,null,null,null,null,null,null,null,null,null,null,0]
[null,null,null,null,null,null,null,null,null,null,null,null,null,null,0]
[null,null,null,null,null,null,null,null,null,null,null,null,null,null,0]
[null,null,null,null,null,null,null,null,null,null,null,null,null,null,0]
[null,null,null,null,null,null,null,null,null,null,null,null,null,null,0]
[null,null,null,null,null,null,null,null,null,null,null,null,null,null,0]
[null,null,null,null,null,null,null,null,null,null,null,null,null,null,0]
[null,null,null,null,null,null,null,null,null,null,null,null,null,null,{"$f":"SUM(E46:N46)","v":0}]
[null,null,"合　　　　計",{"$f":"SUM(D36:D46)","v":0},{"$f":"SUM(E36:E46)","v":0},{"$f":"SUM(F36:F46)","v":0},{"$f":"SUM(G36:G46)","v":0},0,0,0,0,0,0,0,{"$f":"SUM(O36:O46)","v":0}]
[]
[null,"子ども育成機能　合　計",null,{"$f":"D34+D47","v":203},{"$f":"E34+E47","v":16},{"$f":"F34+F47","v":146},2264,51,528,3,32,2,0,21,{"$f":"O34+O47","v":3063}]
[]
[]
["＊注　基本活動は，指針に基づき(２)遊びの教室活動(３)行事活動(４)クラブ活動(５)地域間交流促進活動(６)障害のある児童の居場所づくりと活動への参加促進(７)思春期児童の活動支援に分類して記入すること。"]
["　　　推進活動は，指針に基づき(９)地域を知る活動(１０)移動児童館活動に分類して記入すること。"]
["　　　指定活動は，指定児童館のみ別途報告すること。"]

{"sheet":"児童館事業年間活動報告書10-２雛型","index":1,"n_rows":56,"n_cols":21,"rows_kept":56,"cut":false,"hidden":false,"merged":[[8,15,8,18],[9,15,9,18],[6,19,6,20],[7,19,7,20],[8,19,8,20],[9,19,9,20],[39,15,40,17],[37,3,38,4],[46,3,47,5],[3,19,3,20],[3,7,3,8],[24,5,25,5],[3,14,4,14],[24,8,25,8],[24,9,25,9],[24,10,25,10],[3,15,3,18],[24,11,25,11],[24,12,25,12],[5,19,5,20],[6,15,6,18],[7,15,7,18],[5,0,53,0],[2,0,4,1],[2,4,2,14],[3,4,4,4],[3,5,3,6],[3,9,4,9],[3,10,4,10],[3,11,3,13],[24,4,25,4],[37,13,38,15],[37,11,38,11],[37,5,38,5],[31,3,31,4],[30,3,30,4],[26,3,27,4],[26,5,27,5],[37,20,38,20],[32,3,32,4],[33,3,33,4],[24,6,25,6],[24,13,25,13],[24,14,25,14],[24,7,25,7],[24,3,25,3],[26,20,27,20],[28,3,28,4],[29,3,29,4],[26,17,27,19],[26,13,27,15],[37,16,38,16],[26,16,27,16],[26,6,27,10],[46,1,53,1],[46,8,47,16],[36,3,36,4],[37,6,38,10],[26,11,27,11],[34,3,34,4],[5,1,45,1],[24,2,25,2],[46,6,47,7],[5,15,5,18],[37,17,38,19],[46,17,47,20],[39,18,40,20],[39,3,40,5],[39,6,40,7],[39,8,40,14]]}
[null,null,null,null,null,null,null,null,null,null,null,null,null,null,null,null,null,null,null,null,"＜様式１０－２＞"]
[null,null,null,"2025(R7) 年度　　　　　　児　童　館　事　業　年　間　活　動　報　告　書　　　 　　 　　（　春日野　）児　童　館"]
[null,null,null,null,"参　　　　加　　　　人　　　　数"]
[null,null,"活動名","実施回数","乳幼児","小１～３年",null,"小４～６年",null,"中高生","大人","ボランティア",null,null,"合計","内　　　　　　　　　　　　　　　容",null,null,null,"成　果　と　課　題"]
[null,null,null,null,null,"自由来館","学童クラブ","自由来館","学童クラブ",null,null,"中高生","大学生","大人"]
["子　　ど　　も　　家　　庭　　支　　援　　活　　動　　","基　　　　本　　　　活　　　　動","いちごクラブ",26,85,0,0,0,0,0,85,0,0,0,{"$f":"SUM(E6:N6)","v":170},"【毎週火曜日　10:40～11:40】\n地域の乳幼児親子が登録し、年間を通じて季節の工作や遊びを楽しみ、子育て仲間の輪を広げる。",null,null,null,"同世代の乳幼児親子が集い子育てについての不安を相談し合ったり、活動を通じて交流しておられた。工作や設定あそびなどバラエティーに富んだ企画を実施することができた。\n参加者が少ないので、新規の方への広報やＰＲに力を入れて行く必要がある。"]
[null,null,"なかよしランド",29,63,0,0,0,0,0,63,0,0,0,{"$f":"SUM(E7:N7)","v":126},"【毎週金曜日　10:30～11:30】\n児童館のおもちゃを使っての自由遊び。片付けをしたらはとぽっぽ体操・カード返しをする。\nまた、最終週には簡単な遊びの企画を行う。",null,null,null,"子どもたちは好きなおもちゃで遊びながら、保護者の方はほっこりと子育てについての話をされていた。新規の方への広報やPRが必要である。"]
[null,null,"親子ふれあいヨガ",3,6,0,0,0,0,0,6,0,0,0,{"$f":"SUM(E8:N8)","v":12},"【年3回　10:40～11:40】\n講師の方を招き、遊びを取り入れながら親子で身体をほぐす機会としてもらう。",null,null,null,"乳幼児親子に人気の講座で、初参加の方もおられた。来年度も継続して行いたい。"]
[null,null,"ミュージックケア",3,8,0,0,0,0,0,8,0,0,0,16,"【年3回　10:40～11:40】\n音楽に合わせて身体を動かしたり、鈴やバルーンなどを使って音楽とふれあいながら親子で楽しむ。",null,null,null,"親子で楽しみながら行うことが出来た。来年度も継続して行いたい。"]
[null,null,"子うま文庫",1,4,0,0,0,0,0,4,0,0,0,8,"【年1回　10:40～11:40】\n醍醐地区で活動されている方にきていただいて、乳幼児親子向けにパネルシアターや絵本を読んでいただいた。12月のクリスマスにちなんだ内容にしていただいた。",null,null,null,"ブラックライトシアターや大型絵本など普段なかなか観ることのできない出し物を見たり出来て親子で楽しむんことができた。来年度も継続して行いたい。"]
[null,null,null,null,null,null,null,null,null,null,null,null,null,null,0]
[null,null,null,null,null,null,null,null,null,null,null,null,null,null,0]
[null,null,null,null,null,null,null,null,null,null,null,null,null,null,0]
[null,null,null,null,null,null,null,null,null,null,null,null,null,null,0]
[null,null,null,null,null,null,null,null,null,null,null,null,null,null,0]
[null,null,null,null,null,null,null,null,null,null,null,null,null,null,0]
[null,null,null,null,null,null,null,null,null,null,null,null,null,null,0]
[null,null,null,null,null,null,null,null,null,null,null,null,null,null,0]
[null,null,null,null,null,null,null,null,null,null,null,null,null,null,0]
[null,null,null,null,null,null,null,null,null,null,null,null,null,null,0]
[null,null,null,null,null,null,null,null,null,null,null,null,null,null,0]
[null,null,null,null,null,null,null,null,null,null,null,null,null,null,0]
[null,null,null,null,null,null,null,null,null,null,null,null,null,null,0]
[null,null,null,null,null,null,null,null,null,null,null,null,null,null,{"$f":"SUM(E24:N24)","v":0}]
[null,null,"合　　　　計",{"$f":"SUM(D6:D24)","v":62},{"$f":"SUM(E6:E24)","v":166},0,0,0,0,0,{"$f":"SUM(K6:K24)","v":166},{"$f":"SUM(L6:L24)","v":0},0,0,{"$f":"SUM(O6:O24)","v":332}]
[]
[null,null,null,"子どもの年齢",null,"件数","受　理　及　び　相　談　経　路",null,null,null,null,"件数",null,"相　談　内　容",null,null,"件数","つないだ機関等",null,null,"件数"]
[]
[null,null,null,"乳児",null,1,"児童館にて直接受理",null,null,null,null,1,null,"健全育成問題",null,null,null,"児童相談所"]
[null,null,null,"幼児",null,null,"児童相談所",null,null,null,null,null,null,"家庭養育問題",null,null,null,"保健所"]
[null,null,null,"小１～３年（自由来館）",null,null,"保健所",null,null,null,null,null,null,"成長･発達問題",null,null,null,"子ども支援センター"]
[null,null,"(3)子育て家庭相談・援助","小１～３年（学童）",null,null,"子ども支援センター",null,null,null,null,null,null,"教育問題",null,null,null,"幼稚園･保育園"]
[null,null,"   活動","小４～６年（自由来館）",null,null,"主任児童委員",null,null,null,null,null,null,"非行･問題行動",null,null,null,"小学校"]
[null,null,null,"小４～６年（学童）",null,null,"その他",null,null,null,null,null,null,"その他",null,null,1,"中学校"]
[null,null,null,"中学生",null,null,null,null,null,null,null,null,null,null,null,null,null,"総合支援学校"]
[null,null,null,"高校生",null,null,null,null,null,null,null,null,null,null,null,null,null,"その他"]
[]
[null,null,null,"件数　計",null,{"$f":"SUM(F29:F37)","v":1},"－",null,null,null,null,{"$f":"SUM(L29:L37)","v":1},null,"－",null,null,{"$f":"SUM(Q29:Q37)","v":1},"－",null,null,{"$f":"SUM(U29:U37)","v":0}]
[]
[null,null,null,"グループ名",null,null,"構成人数",null,"活　動　内　容",null,null,null,null,null,null,"育成・支援内容",null,null,"成果と課題"]
[]
[]
[null,null,"(4)子育てグループを育成"]
[null,null,"   ・支援する活動"]
[]
[]
[null,"推進活動",null,"活動名",null,null,"実施回数",null,"活　　動　　内　　容",null,null,null,null,null,null,null,null,"成　果　と　課　題"]
[]
[]
[null,null,"(5)子育てと健全育成に関"]
[null,null,"   する啓発活動"]
[]
[]
[]
[]
["※注　基本活動は，指針に基づき(1)乳幼児とその保護者を対象とする活動[①乳幼児クラブ活動　②乳幼児の広場活動]（２）家族参加を促す活動に分類して記入すること。"]

{"sheet":"児童館事業年間活動報告書10-３雛型","index":2,"n_rows":46,"n_cols":19,"rows_kept":46,"cut":false,"hidden":false,"merged":[[11,16,11,17],[12,16,12,17],[6,16,6,17],[7,16,7,17],[8,16,8,17],[9,16,9,17],[10,16,10,17],[45,2,46,2],[3,3,5,3],[3,4,5,4],[3,0,57,0],[38,3,39,3],[38,4,39,11],[4,10,4,11],[4,7,5,7],[3,1,57,1],[36,10,37,10],[36,8,37,8],[36,7,37,7],[19,9,20,9],[26,2,27,2],[19,4,20,4],[9,2,12,2],[19,14,20,14],[21,7,21,10],[21,11,22,18],[21,3,22,6],[19,15,20,15],[19,8,20,8],[19,7,20,7],[19,11,20,11],[19,3,20,3],[38,12,39,18],[36,9,37,9],[19,18,20,18],[19,16,20,17],[3,5,5,6],[36,6,37,6],[3,18,5,18],[4,15,5,15],[19,10,20,10],[3,16,5,17],[4,12,5,13],[19,12,20,13],[3,7,3,15],[4,14,5,14],[19,5,20,6],[4,8,4,9]]}
[null,null,null,null,null,null,null,null,null,null,null,null,null,null,null,null,null,null,"＜様式１０－３＞"]
[null,null,null,"2025(R7) 年度　　　　　　児　童　館　事　業　年　間　活　動　報　告　書　　　 　　 　　（　春日野　）児　童　館"]
[]
["地　　　域　　　福　　　祉　　　促　　　進　　　機　　　能","基　　　　　　本　　　　　　活　　　　　　動",null,"活　　動　　名","実施回数","主　　催",null,"参　加　人　数",null,null,null,null,null,null,null,null,"連携団体",null,"成果と課題"]
[null,null,null,null,null,null,null,"乳幼児","小１～３年",null,"小４～６年",null,"中高生",null,"大人","合　計"]
[null,null,null,null,null,null,null,null,"自由来館","学童クラブ","自由来館","学童クラブ"]
[null,null,null,"子育てサロン",9,null,null,15,0,0,0,0,0,null,15,{"$f":"SUM(H7:O7)","v":30},"日野学区民生児童委員協議会",null,"【毎月第3金曜日】安全面に配慮しながら年間を通じて活動を行うことができた。乳幼児親子の居場所となっていたので、来年度も安全面に配慮し、場所提供していきたい。民生委員の方の交代もあったので、しっかりと連携をとっていかなければならない。"]
[null,null,null,"地域子育て支援会議",1,null,null,0,0,0,0,0,0,null,4,{"$f":"SUM(H8:O8)","v":4},"日野学区民生児童委員協議会\nつくし保育園\n誕生院保育園\n南団地自治会\n地域住民　",null,"【年2回(4月・2月)】\n地域の課題について話し合ったり、情報交換する機会となった。"]
[null,null,null,"たんぽぽサークル",17,null,null,0,0,0,1,0,0,null,25,26,"地域住民",null,"【毎月第2、3木曜日】\n参加者同士の交流の場となっている。"]
[null,null,"(1)地域住民との交\n　流を促進する活動","日野子育て支援ネットワーク\nよちよち広場",7,null,null,12,0,0,0,0,0,null,13,25,"日野学区民生児童委員協議会\nつくし保育園\n誕生院保育園\n南団地自治会\n地域住民　",null,"【年7回】\n民生児童委員や地域の保育園の方と連携して主に自由遊びを行った。施設が交代で絵本の読み聞かせを行った。保護者の方の居場所づくりにつながった。"]
[null,null,null,"運営連絡会",2,null,null,0,0,0,0,0,0,null,13,13,"日野学区社会福祉協議会\n日野学区自町連会長\n日野学区民生児童委員\n春日野自町連\n醍醐南団地自治会\n日野小学校\n京都市伏見区社会福祉協議会\n京都市社会福祉協議会",null,"【年2回(6月・3月)】\n6月には児童館の年間計画、3月には年間報告を行った。"]
[null,null,null,"ネットワーク会議",4,null,null,0,0,0,0,0,0,null,12,{"$f":"SUM(H12:O12)","v":12},"日野学区民生児童委員協議会\nつくし保育園\n誕生院保育園\n南団地自治会\n地域住民　",null,"【よちよち広場終了後実施】\nその日の振り返りや情報共有を行った。"]
[null,null,null,"どれみふぁそったくん",1,null,null,2,1,11,0,1,0,null,2,17,"日野学区民生児童委員協議会\nつくし保育園\n誕生院保育園\n南団地自治会\n地域住民　　",null,"京都教育大学「どれみふぁそったくん」に来ていただいてクリスマスにまつわる曲を演奏していただいた。子どもが指揮者体験をしたり曲に合わせて踊ったりして乳幼児親子から大人まで楽しめた。"]
[null,null,null,null,null,null,null,null,null,null,0,null,0,null,null,0]
[null,null,null,null,null,null,null,null,null,null,null,null,null,null,null,0]
[null,null,null,null,null,null,null,null,null,null,null,null,null,null,null,0]
[null,null,null,null,null,null,null,null,null,null,null,null,null,null,null,0]
[null,null,null,null,null,null,null,null,null,null,null,null,null,null,null,0]
[null,null,null,null,null,null,null,null,null,null,null,null,null,null,null,{"$f":"SUM(H19:O19)","v":0}]
[null,null,null,"合　　　　計",{"$f":"SUM(E7:E19)","v":41},"－",null,{"$f":"SUM(H7:H19)","v":29},{"$f":"SUM(I7:I19)","v":1},11,1,{"$f":"SUM(L7:L19)","v":1},{"$f":"SUM(M7:M19)","v":0},null,{"$f":"SUM(O7:O19)","v":84},{"$f":"SUM(P7:P19)","v":127}]
[]
[null,null,null,"活　　動　　内　　容",null,null,null,"活　　動　　人　　数",null,null,null,"成　　　果　　　と　　　課　　　題"]
[null,null,null,null,null,null,null,"中高生","大学生","大　人","合　計"]
[null,null,null,null,null,null,null,null,null,null,{"$f":"SUM(H24:J24)","v":0}]
[null,null,null,null,null,null,null,null,null,null,{"$f":"SUM(H25:J25)","v":0}]
[null,null,null,null,null,null,null,null,null,null,0]
[null,null,"(2)ボランティア\n　　活動の推進",null,null,null,null,null,null,null,0]
[null,null,null,null,null,null,null,null,null,null,0]
[null,null,null,null,null,null,null,null,null,null,0]
[null,null,null,null,null,null,null,null,null,null,0]
[null,null,null,null,null,null,null,null,null,null,0]
[null,null,null,null,null,null,null,null,null,null,0]
[null,null,null,null,null,null,null,null,null,null,0]
[null,null,null,null,null,null,null,null,null,null,0]
[null,null,null,null,null,null,null,null,null,null,0]
[null,null,null,null,null,null,null,null,null,null,0]
[null,null,null,null,null,null,"合　計",{"$f":"SUM(H24:H36)","v":0},{"$f":"SUM(I24:I36)","v":0},{"$f":"SUM(J24:J36)","v":0},{"$f":"SUM(K24:K36)","v":0}]
[]
[null,null,null,"連　　携　　団　　体　　等","連　　　　　携　　　　　内　　　　　容",null,null,null,null,null,null,null,"成　　　果　　　と　　　課　　　題"]
[]
[]
[]
[]
[]
[]
[null,null,"(3)地域との連携を\n　促進する活動"]

{"sheet":"児童館事業年間活動報告書10-４雛型","index":3,"n_rows":54,"n_cols":13,"rows_kept":54,"cut":false,"hidden":false,"merged":[[43,3,44,3],[43,5,44,6],[43,11,44,12],[3,0,57,0],[3,6,4,7],[3,8,4,9],[3,10,4,11],[3,12,4,12],[18,11,19,12],[43,4,44,4],[18,8,19,10],[18,6,19,7],[43,7,44,8],[43,9,44,10],[3,1,17,1],[18,1,57,1],[3,3,4,5],[18,3,19,5],[5,3,17,4],[5,6,17,7],[5,8,17,9],[5,10,17,11],[5,12,17,12],[20,3,25,4],[20,6,25,7],[20,8,25,10],[20,11,25,12],[45,7,45,8],[45,9,45,10],[46,7,46,8],[46,9,46,10],[47,7,47,8],[47,9,47,10],[48,7,48,8],[48,9,48,10],[49,7,49,8],[49,9,49,10],[50,7,50,8],[50,9,50,10],[51,7,51,8],[51,9,51,10],[52,7,52,8],[52,9,52,10],[53,7,53,8],[53,9,53,10],[50,11,50,12],[51,11,51,12],[52,11,52,12],[53,11,53,12],[45,11,45,12],[46,11,46,12],[47,11,47,12],[48,11,48,12],[49,11,49,12]]}
[null,null,null,null,null,null,null,null,null,null,null,null,"＜様式１０－４＞"]
[null,null,null,null,"2025(R7) 年度　　　　　　児　童　館　事　業　年　間　活　動　報　告　書　　　 　　 　　（　春日野　）児　童　館"]
[]
["地　　　域　　　福　　　祉　　　促　　　進　　　機　　　能","基　本　活　動",null,"組織名称",null,null,"構成団体・個人",null,"会議／取組頻度",null,"議題／取組内容",null,"成果と課題"]
[]
[null,null,null,"春日野児童館運営連絡会",null,null,"日野学区自治会、民生児童委員協議会\n不動講自治会、春日野自町連\n醍醐南団地自治会\n日野小学校、京都市社会福祉協議会\n春日野児童館、日野学区社協、伏見区社協",null,"年２回（６月/３月）",null,"年2回（6月・3月）事業の取り組みや活動報告・児童館の様子などをお伝えした。",null,"児童館の取り組みや活動報告をすることで、地域と共有することができた。"]
[]
[]
[null,null,"(4)児童館を支える地域"]
[null,null,"   組織作り"]
[]
[]
[]
[]
[]
[]
[]
[]
[null,"推　進　活　動",null,"会場提供・備品貸出等",null,null,"使　用　目　的",null,"提供先（団体・機関等）",null,null,"成果と課題"]
[]
[null,null,null,"子育てサロン",null,null,"地域の乳幼児親子へ、日野学区民生児童委員協議会が子育ての広場を提供する。",null,"日野学区民生児童委員協議会",null,null,"乳幼児親子も毎回楽しく参加されて、親子の居場所とつながっていた。来年度は新規の方に来ていただける工夫が必要である。"]
[]
[]
[]
[]
[]
[]
[]
[]
[]
[null,null,"(5)地域への施設提供"]
[]
[]
[]
[]
[]
[]
[]
[]
[]
[]
[]
[]
[null,null,null,"調査名","調査目的","調査対象",null,"調査主体",null,"調査方法",null,"成果と課題"]
[]
[null,null,null,"学童クラブ入会アンケート","学童クラブへの入会、希望調査",null,"新１年生保護者","児童館",null,"就学児健診時にアンケート調査",null,"新１年生の学童クラブへの入会の動向について、ある程度人数を把握することができた。企画・内容・運営方法を参考にすることができた。"]
[null,null,null,"いちごクラブアンケート","いちごクラブへの意見、要望調査",null,"いちごクラブ保護者","児童館",null,"アンケート調査",null,"来年度の企画・内容・運営方法の参考にすることができた。"]
[null,null,null,"親子ふれあいヨガアンケート","参加者への満足度、感想、要望調査",null,"乳幼児親子参加者","児童館",null,"アンケート調査",null,"企画・内容・運営方法の参考にすることができた。"]
[null,null,null,"なかよしランドアンケート","なかよしランドへの意見、要望調査",null,"なかよしランド参加者","児童館",null,"アンケート調査",null,"来年度の企画・内容・運営方法の参考にすることができた。"]
[null,null,null,"ミュージックケアアンケート","参加者への満足度、感想、要望調査",null,"ミュージックケア参加者","児童館",null,"アンケート調査",null,"企画・内容・運営方法の参考にすることができた。"]
[null,null,"(6)地域調査活動","子うま文庫アンケート","参加者への満足度、感想、要望調査",null,"子うま文庫参加者","児童館",null,"アンケート調査",null,"企画・内容・運営方法の参考にすることができた。"]
[null,null,null,"防災食講座アンケート","参加者への満足度、感想、要望調査",null,"防災食講座参加者","児童館",null,"アンケート調査",null,"企画・内容・運営方法の参考にすることができた。"]
[null,null,null,"どれみふぁそったくんアンケート","参加者への満足度、感想、要望調査",null,"どれみふぁそったくん参加者","児童館",null,"アンケート調査",null,"企画・内容・運営方法の参考にすることができた。"]
[null,null,null,"利用者アンケート","実態調査",null,"児童館利用者全体","児童館",null,"アンケート調査",null,"児童館に対しての考えや要望を知ることができ、改善へとつなげられている。"]

{"sheet":"児童館事業年間活動報告書10-５雛型","index":4,"n_rows":13,"n_cols":7,"rows_kept":13,"cut":false,"hidden":false,"merged":[[3,6,4,6],[3,0,4,0],[5,0,54,0],[3,1,4,1],[3,2,4,2],[3,3,4,3],[3,4,4,4],[3,5,4,5]]}
[null,null,null,null,null,null,"＜様式１０－５＞"]
[null,null,"2025(R7) 年度　　　　　　児　童　館　事　業　年　間　活　動　報　告　書　　　 　　 　　（　春日野　）児　童　館"]
[]
[null,"広報物の種類","発行頻度","広報対象","広報方法","広報内容","成果と課題"]
[]
["広　　　　　　報　　　　　　活　　　　　　動","おたより\n「春日野じどうかんだより」\n（春日野児童館からのお知らせ）","月１回","辰巳保育所／誕生院保育園／つくし保育園\n乳幼児クラブ「いちごクラブ」他\n醍醐支援センター／保健センター\n日野小学校／各自治体","日野小学校全校配布\n各機関へ配布\n乳幼児行事で配布\n醍醐支所へ配布しに行く","行事のお知らせ、申し込み、行事の様子","日野小学校へのおたよりは、メールにてお伝えしている。小学校から各保護者へ、すぐ～るで配信していただいている。日野小学校の保護者にも児童館行事をお知らせすることができた。地域の保護者にも乳幼児行事など様々な利用の仕方があることを知っていただけた。関係機関に持参することで情報交換など行うことができた。活動の様子など分かりやすく伝わるよう工夫する。"]
[null,"回覧\n「春日野じどうかんだより」\n（春日野児童館からのお知らせ）","月１回","日野学区　地域住民","各町内会、会長へ配布を依頼","毎月の行事のお知らせ","地域回覧を活用することにより、来館したことのない地域の家庭にも情報を届けることができた。学校と連携してスムーズに回覧できるよう心掛ける。"]
[null,"子育て支援だより\n「だいごっこ」\n発行：醍醐支所子どもはぐくみ室","月１回","醍醐地区の子育て家庭","乳幼児行事で配布","地域の各機関、施設の事業案内\nカレンダー","醍醐地区の子育て関係機関の案内や子育てに関する情報がまとめて掲載されているので、地域の子育て家庭に活用されている。"]
[null,"情報誌「てとてと」\n発行：醍醐支所子どもはぐくみ室","年１回","醍醐地区の子育て家庭","乳幼児行事で配布\nつくし保育園、誕生院保育園","子育て支援ステーション事業実施施設の案内","醍醐地区の子育て関係機関の案内や子育てに関する情報がまとめて掲載されているので地域の子育て家庭に活用されている。"]
[null,"いちごクラブだより","月１回","乳幼児クラブ登録者","乳幼児クラブで配布","乳幼児行事のお知らせ\nその月の歌・手あそびの歌詞","翌月の行事予定や、持ち物を掲載した。配付日に欠席されていた家庭にはICTでおたよりを送信したりするなど工夫した。また、活動写真等は親子で嬉しそうに見られていた。"]
[null,"いちごクラブ募集ポスター","年１回","地域の乳幼児親子","乳幼児クラブ・乳幼児向け行事で広報\n地域の掲示板に掲示　　　　　　　　　ホームページ","次年度の乳幼児クラブ「いちごクラブ」の募集を行う","各関係の保育園や町内の掲示板も活用させていただいている。来年度も、町内の掲示板を活用させていただく。"]
[null,"ホームページの活用","月１回更新","児童館利用者","インターネット","児童館だよりの掲載や、ポスター掲載","月初めに更新を行い、活用している。乳幼児活動のポスターなどもリアルタイムに載せて活用する。見やすい工夫などを取り入れていきたい。"]
[null,"キッズステーション","年２回","地域の乳幼児親子　　　　　　　　　　　　　学童クラブ児童家庭","就学時健診　　　　　　　　\n学童・乳幼児行事で配布","児童館の様子などの情報","児童館の様子や情報を子育て家庭や学童クラブ家庭へ配布し、児童館の活動などをPRする事ができた。"]

{"sheet":"ファイル一覧","index":5,"n_rows":21,"n_cols":2,"rows_kept":21,"cut":false,"hidden":false,"merged":[]}
["ファイル名","最終更新日時"]
["2026_04_22_09_55_03_春日野児童館_事業活動報告書101～105_2025.xlsm","2026-04-22T09:55:03"]
["2026_04_16_10_45_07_春日野児童館_事業活動報告書101～105_2025.xlsm","2026-04-16T10:45:08"]
["2026_04_16_10_03_25_春日野児童館_事業活動報告書101～105_2025.xlsm","2026-04-16T10:03:26"]
["2026_04_15_11_26_31_春日野児童館_事業活動報告書101～105_2025.xlsm","2026-04-15T11:26:32"]
["2026_04_14_10_34_20_春日野児童館_事業活動報告書101～105_2025.xlsm","2026-04-14T10:34:21"]
["2026_04_13_10_31_11_春日野児童館_事業活動報告書101～105_2025.xlsm","2026-04-13T10:31:12"]
["2026_04_11_13_01_26_春日野児童館_事業活動報告書101～105_2025.xlsm","2026-04-11T13:01:26"]
["2026_04_11_12_59_53_春日野児童館_事業活動報告書101～105_2025.xlsm","2026-04-11T12:59:53"]
["2026_04_11_12_59_17_春日野児童館_事業活動報告書101～105_2025.xlsm","2026-04-11T12:59:17"]
["2026_04_11_12_58_33_春日野児童館_事業活動報告書101～105_2025.xlsm","2026-04-11T12:58:33"]
["2026_04_10_15_28_49_春日野児童館_事業活動報告書101～105_2025.xlsm","2026-04-10T15:28:49"]
["2026_04_10_15_06_39_春日野児童館_事業活動報告書101～105_2025.xlsm","2026-04-10T15:06:39"]
["2026_04_10_13_58_15_春日野児童館_事業活動報告書101～105_2025.xlsm","2026-04-10T13:58:15"]
["2026_04_10_13_18_38_春日野児童館_事業活動報告書101～105_2025.xlsm","2026-04-10T13:18:39"]
["2026_04_10_13_18_09_春日野児童館_事業活動報告書101～105_2025.xlsm","2026-04-10T13:18:09"]
["2026_04_10_13_11_34_春日野児童館_事業活動報告書101～105_2025.xlsm","2026-04-10T13:11:34"]
["2026_04_10_13_11_11_春日野児童館_事業活動報告書101～105_2025.xlsm","2026-04-10T13:11:11"]
["2026_04_10_11_14_45_春日野児童館_事業活動報告書101～105_2025.xlsm","2026-04-10T11:14:46"]
["2026_04_10_11_14_12_春日野児童館_事業活動報告書101～105_2025.xlsm","2026-04-10T11:14:13"]
["2026_04_04_18_33_47_春日野児童館_事業活動報告書101～105_2025.xlsm","2026-04-04T18:33:47"]